fUST/lending_fUST_20240630
["ID","MTS","AMOUNT","RATE_DAILY","PERIOD"]
[330714777,1719727841236,-500.0,0.00016438,2]
[330714778,1719727841245,-697.61,0.00016438,2]
[330714779,1719727841254,-501.00203503,0.00016438,2]
[330714780,1719727841263,-728.68,0.00016438,2]
[330714781,1719727841273,-513.57,0.00016438,2]
[330714782,1719727841282,-502.32933308,0.00016438,2]
[330714783,1719727841291,-515.09824929,0.00016438,2]
[330714784,1719727841300,-502.75853814,0.00016438,2]
[330714785,1719727841310,-500.0,0.00016438,2]
[330714786,1719727841321,-500.0,0.00016438,2]
[330714787,1719727841332,-502.68202853,0.00016438,2]
[330714788,1719727841341,-518.6968974,0.00016438,2]
[330714789,1719727841350,-1488.78,0.00016438,2]
[330714790,1719727841361,-500.0,0.00016438,2]
[330714791,1719727841372,-3242.34,0.00016438,2]
[330714792,1719727841383,-500.0,0.00016438,2]
[330714793,1719727841393,-500.15,0.00016438,2]
[330714794,1719727841403,-500.0,0.00016438,2]
[330714795,1719727841414,-506.19227959,0.00016438,2]
[330714796,1719727841424,-500.0,0.00016438,2]
[330714797,1719727841433,-494.74240555,0.00016438,2]
[330714798,1719727841442,-1034.21,0.00016438,2]
[330714799,1719727841451,-500.0,0.00016438,2]
[330714800,1719727841460,-3921.99,0.00016438,2]
[330714801,1719727841470,-490.34845535,0.00016438,2]
[330714802,1719727841479,-594.27,0.00016438,2]
[330714803,1719727841489,-513.74471728,0.00016438,2]
[330714804,1719727841499,-500.0,0.00016438,2]
[330714805,1719727841508,-1272.77,0.00016438,2]
[330714806,1719727841517,-500.0,0.00016438,2]
[330714807,1719727841526,-635.80447038,0.00016438,2]
[330714808,1719727841535,-963.57,0.00016438,2]
[330714809,1719727841544,-500.0,0.00016438,2]
[330714810,1719727841554,-526.18308385,0.00016438,2]
[330714811,1719727841563,-500.0,0.00016438,2]
[330714812,1719727841572,-550.43610066,0.00016438,2]
[330714813,1719727841581,-3478.08,0.00016438,2]
[330714814,1719727841591,-1288.1,0.00016438,2]
[330714815,1719727841599,-900.33,0.00016438,2]
[330714816,1719727841608,-500.0,0.00016438,2]
[330714817,1719727841618,-500.0,0.00016438,2]
[330714818,1719727841628,-501.7334312,0.00016438,2]
[330714819,1719727841638,-500.0,0.00016438,2]
[330714820,1719727841647,-500.0,0.00016438,2]
[330714821,1719727841656,-2049.93,0.00016438,2]
[330714822,1719727841666,-500.0,0.00016438,2]
[330714823,1719727841675,-500.0,0.00016438,2]
[330714824,1719727841684,-500.0,0.00016438,2]
[330714825,1719727841693,-500.0,0.00016438,2]
[330714826,1719727841703,-501.5096367,0.00016438,2]
[330714827,1719727841712,-500.0,0.00016438,2]
[330714828,1719727841722,-2964.06,0.00016438,2]
[330714829,1719727841731,-500.0,0.00016438,2]
[330714830,1719727841741,-500.0,0.00016438,2]
[330714831,1719727841751,-500.0,0.00016438,2]
[330714832,1719727841760,-516.65,0.00016438,2]
[330714833,1719727841769,-642.72365021,0.00016438,2]
[330714834,1719727841779,-500.0,0.00016438,2]
[330714835,1719727841788,-852.01,0.00016438,2]
[330714836,1719727841797,-500.0,0.00016438,2]
[330714837,1719727841807,-2504.72,0.00016438,2]
[330714838,1719727841816,-500.0,0.00016438,2]
[330714839,1719727841825,-500.0,0.00016438,2]
[330714840,1719727841834,-500.0,0.00016438,2]
[330714841,1719727841844,-1993.28,0.00016438,2]
[330714842,1719727841853,-627.36491239,0.00016438,2]
[330714843,1719727841862,-497.24081601,0.00016438,2]
[330714844,1719727841872,-509.45315943,0.00016438,2]
[330714845,1719727841881,-500.0,0.00016438,2]
[330714846,1719727841890,-1071.78,0.00016438,2]
[330714847,1719727841899,-500.0,0.00016438,2]
[330714848,1719727841908,-500.0,0.00016438,2]
[330714849,1719727841917,-503.33884486,0.00016438,2]
[330714850,1719727841926,-500.0,0.00016438,2]
[330714851,1719727841935,-500.0,0.00016438,2]
[330714852,1719727841944,-500.0,0.00016438,2]
[330714853,1719727841953,-370.21868496,0.00016438,2]
[330714854,1719727841963,-500.0,0.00016438,2]
[330714855,1719727841971,-500.0,0.00016438,2]
[330714856,1719727841983,-1938.97,0.00016438,2]
[330714857,1719727841993,-500.0,0.00016438,2]
[330714858,1719727842002,-500.0,0.00016438,2]
[330714859,1719727842011,-500.0,0.00016438,2]
[330714860,1719727842020,-550.02769491,0.00016438,2]
[330714861,1719727842030,-500.0,0.00016438,2]
[330714862,1719727842039,-1404.62,0.00016438,2]
[330714863,1719727842048,-500.0,0.00016438,2]
[330714864,1719727842057,-1277.19,0.00016438,2]
[330714865,1719727842067,-1682.43,0.00016438,2]
[330714866,1719727842076,-500.0,0.00016438,2]
[330714867,1719727842085,-500.0,0.00016438,2]
[330714868,1719727842096,-517.27090328,0.00016438,2]
[330714869,1719727842105,-500.0,0.00016438,2]
[330714870,1719727842114,-754.12,0.00016438,2]
[330714871,1719727842127,-500.0,0.00016438,2]
[330714872,1719727842136,-500.0,0.00016438,2]
[330714873,1719727842145,-699.59,0.00016438,2]
[330714874,1719727842154,-500.0,0.00016438,2]
[330714875,1719727842163,-1763.97,0.00016438,2]
[330714876,1719727842172,-352.42377064,0.00016438,2]
[330714877,1719727842181,-500.0,0.00016438,2]
[330714878,1719727842280,-614.86170782,0.00016438,2]
[330714879,1719727842290,-548.5553125,0.00016438,2]
[330714880,1719727842300,-500.0,0.00016438,2]
[330714881,1719727842309,-500.0,0.00016438,2]
[330714882,1719727842321,-500.0,0.00016438,2]
[330714883,1719727842332,-500.0,0.00016438,2]
[330714884,1719727842343,-500.0,0.00016438,2]
[330714885,1719727842353,-793.71,0.00016438,2]
[330714886,1719727842363,-500.0,0.00016438,2]
[330714887,1719727842372,-746.24,0.00016438,2]
[330714888,1719727842382,-1047.47,0.00016438,2]
[330714889,1719727842391,-500.0,0.00016438,2]
[330714890,1719727842403,-505.69048026,0.00016438,2]
[330714891,1719727842413,-642.22,0.00016438,2]
[330714892,1719727842423,-500.0,0.00016438,2]
[330714893,1719727842432,-579.06,0.00016438,2]
[330714894,1719727842442,-600.36,0.00016438,2]
[330714895,1719727842451,-600.27,0.00016438,2]
[330714896,1719727842461,-1318.82,0.00016438,2]
[330714897,1719727842471,-500.0,0.00016438,2]
[330714898,1719727842481,-510.23074069,0.00016438,2]
[330714899,1719727842491,-284.42713309,0.00016438,2]
[330714900,1719727842501,-1075.04,0.00016438,2]
[330714901,1719727842510,-500.0,0.00016438,2]
[330714902,1719727842520,-853.03,0.00016438,2]
[330714903,1719727842530,-356.35071583,0.00016438,2]
[330714904,1719727842539,-1103.87,0.00016438,2]
[330714905,1719727842548,-500.0,0.00016438,2]
[330714906,1719727842559,-500.0,0.00016438,2]
[330714907,1719727842568,-500.0,0.00016438,2]
[330714908,1719727842578,-500.0,0.00016438,2]
[330714909,1719727842588,-500.0,0.00016438,2]
[330714910,1719727842598,-500.0,0.00016438,2]
[330714911,1719727842608,-631.25,0.00016438,2]
[330714912,1719727842617,-500.0,0.00016438,2]
[330714913,1719727842626,-151.0,0.00016438,2]
[330714914,1719727842635,-949.62,0.00016438,2]
[330714915,1719727842645,-500.0,0.00016438,2]
[330714916,1719727842654,-2086.46,0.00016438,2]
[330714917,1719727842663,-500.0,0.00016438,2]
[330714918,1719727842673,-500.0,0.00016438,2]
[330714919,1719727842683,-1113.83,0.00016438,2]
[330714920,1719727842692,-289.60180545,0.00016438,2]
[330714921,1719727842702,-500.0,0.00016438,2]
[330714922,1719727842711,-500.0,0.00016438,2]
[330714923,1719727842720,-500.0,0.00016438,2]
[330714924,1719727842729,-500.0,0.00016438,2]
[330714925,1719727842739,-1895.02,0.00016438,2]
[330714926,1719727842748,-500.0,0.00016438,2]
[330714927,1719727842758,-1371.68,0.00016438,2]
[330714928,1719727842768,-572.42,0.00016438,2]
[330714929,1719727842777,-962.72,0.00016438,2]
[330714930,1719727842786,-500.0,0.00016438,2]
[330714931,1719727842795,-3815.59,0.00016438,2]
[330714932,1719727842804,-1950.68,0.00016438,2]
[330714933,1719727842815,-3914.59,0.00016438,2]
[330714934,1719727842824,-508.10731312,0.00016438,2]
[330714935,1719727842835,-711.91,0.00016438,2]
[330714936,1719727842846,-500.0,0.00016438,2]
[330714937,1719727842855,-506.29147008,0.00016438,2]
[330714938,1719727842865,-500.0,0.00016438,2]
[330714939,1719727842875,-832.52,0.00016438,2]
[330714940,1719727842884,-500.0,0.00016438,2]
[330714941,1719727842893,-500.0,0.00016438,2]
[330714942,1719727842903,-501.53968215,0.00016438,2]
[330714943,1719727842912,-546.67653894,0.00016438,2]
[330714944,1719727842922,-500.0,0.00016438,2]
[330714945,1719727842931,-504.76597626,0.00016438,2]
[330714946,1719727842941,-18335.36,0.00016438,2]
[330714947,1719727842951,-501.82408422,0.00016438,2]
[330714948,1719727842960,-500.0,0.00016438,2]
[330714949,1719727842969,-500.74695994,0.00016438,2]
[330714950,1719727842980,-503.08253813,0.00016438,2]
[330714951,1719727842990,-504.21438087,0.00016438,2]
[330714952,1719727842999,-605.53090476,0.00016438,2]
[330714953,1719727843009,-500.0,0.00016438,2]
[330714954,1719727843019,-500.0,0.00016438,2]
[330714956,1719727843028,-500.0,0.00016438,2]
[330714957,1719727843037,-500.0,0.00016438,2]
[330714958,1719727843046,-1567.52,0.00016438,2]
[330714959,1719727843055,-508.18186603,0.00016438,2]
[330714960,1719727843064,-500.0,0.00016438,2]
[330714961,1719727843073,-658.41,0.00016438,2]
[330714962,1719727843084,-500.0,0.00016438,2]
[330714963,1719727843094,-500.0,0.00016438,2]
[330714964,1719727843103,-506.07113532,0.00016438,2]
[330714965,1719727843112,-500.0,0.00016438,2]
[330714966,1719727843122,-500.0,0.00016438,2]
[330714967,1719727843132,-598.33,0.00016438,2]
[330714968,1719727843141,-2593.85,0.00016438,2]
[330714969,1719727843151,-500.0,0.00016438,2]
[330714970,1719727843160,-1242.44,0.00016438,2]
[330714971,1719727843170,-500.0,0.00016438,2]
[330714972,1719727843179,-651.93,0.00016438,2]
[330714973,1719727843188,-500.0,0.00016438,2]
[330714974,1719727843197,-500.0,0.00016438,2]
[330714975,1719727843207,-560.18,0.00016438,2]
[330714976,1719727843216,-1754.19,0.00016438,2]
[330714977,1719727843225,-6092.67,0.00016438,2]
[330714978,1719727843235,-4930.47,0.00016438,2]
[330714979,1719727843244,-13911.53430411,0.00016438,2]
[330714984,1719727843839,-1679.99563744,0.00016338,2]
[330714985,1719727843849,-5926.67442597,0.00016438,2]
[330714986,1719727843860,-808.88059479,0.00016438,2]
[330714987,1719727843872,-186.97067513,0.00016438,2]
[330714988,1719727843881,-306.17332487,0.00016438,2]
[330715019,1719727941688,3000.0,0.000241,59]
[330715020,1719727982897,1058.87397207,0.00015,2]
[330715021,1719728014207,3950.0,0.00024,60]
[330715023,1719728028724,2496.69621888,0.00014999,2]
[330715025,1719728463764,8232.3583856,0.00014894,2]
[330715028,1719728587018,295.0,0.0002,60]
[330715029,1719728628418,1791.2897047,0.00014996,2]
[330715034,1719728768473,6754.08201223,0.0001501,2]
[330715173,1719729037921,-252.9929245,0.00015027,2]
[330715174,1719729037931,-250.0,0.0001526,2]
[330715176,1719729037941,-777.8438192,0.00016154,2]
[330715178,1719729037951,-117637.9303216,0.0001625,2]
[330715179,1719729037961,-100000.0,0.00016254,2]
[330715180,1719729037971,-801.20663452,0.00016255,2]
[330715181,1719729037981,-5286.34479944,0.00016262,2]
[330715182,1719729037991,-4482.62052316,0.00016338,2]
[330715183,1719729038002,-2000.0,0.00016338,2]
[330715184,1719729038011,-601.88019141,0.00016359,2]
[330715185,1719729038022,-206.0005558,0.000164,2]
[330715186,1719729038031,-153.0,0.000164,2]
[330715187,1719729038041,-206.0005558,0.000164,2]
[330715188,1719729038051,-306.0,0.000164,2]
[330715189,1719729038061,-153.0,0.000164,2]
[330715190,1719729038071,-206.0005558,0.000164,2]
[330715191,1719729038081,-414.1952241,0.000164,2]
[330715192,1719729038090,-306.0,0.000164,2]
[330715193,1719729038100,-308.3064217,0.000164,2]
[330715194,1719729038110,-206.0005558,0.000164,2]
[330715195,1719729038120,-206.0005558,0.000164,2]
[330715196,1719729038129,-206.0005558,0.000164,2]
[330715197,1719729038139,-204.2300918,0.000164,2]
[330715198,1719729038148,-506.0555363,0.00016438,2]
[330715199,1719729038157,-500.0,0.00016438,2]
[330715200,1719729038167,-508.39780189,0.00016438,2]
[330715201,1719729038177,-500.0,0.00016438,2]
[330715202,1719729038187,-613.6880139,0.00016438,2]
[330715203,1719729038196,-500.0,0.00016438,2]
[330715204,1719729038206,-579.06,0.00016438,2]
[330715205,1719729038215,-500.0,0.00016438,2]
[330715206,1719729038224,-500.0,0.00016438,2]
[330715207,1719729038234,-500.0,0.00016438,2]
[330715208,1719729038243,-503.84856482,0.00016438,2]
[330715209,1719729038252,-500.0,0.00016438,2]
[330715210,1719729038261,-500.0,0.00016438,2]
[330715211,1719729038271,-736.09,0.00016438,2]
[330715212,1719729038280,-500.0,0.00016438,2]
[330715213,1719729038290,-320.90698252,0.00016438,2]
[330715214,1719729038300,-524.30153872,0.00016438,2]
[330715215,1719729038309,-500.0,0.00016438,2]
[330715216,1719729038318,-500.0,0.00016438,2]
[330715217,1719729038327,-500.0,0.00016438,2]
[330715218,1719729038336,-500.0,0.00016438,2]
[330715219,1719729038346,-500.0,0.00016438,2]
[330715220,1719729038356,-500.0,0.00016438,2]
[330715221,1719729038366,-500.0,0.00016438,2]
[330715222,1719729038376,-502.76565142,0.00016438,2]
[330715223,1719729038385,-500.0,0.00016438,2]
[330715224,1719729038395,-500.0,0.00016438,2]
[330715225,1719729038405,-521.79150809,0.00016438,2]
[330715226,1719729038414,-500.0,0.00016438,2]
[330715227,1719729038424,-623.71,0.00016438,2]
[330715228,1719729038434,-500.78,0.00016438,2]
[330715229,1719729038443,-500.0,0.00016438,2]
[330715230,1719729038453,-500.0,0.00016438,2]
[330715231,1719729038462,-500.0,0.00016438,2]
[330715232,1719729038472,-500.0,0.00016438,2]
[330715233,1719729038482,-976.84,0.00016438,2]
[330715234,1719729038492,-502.25486013,0.00016438,2]
[330715235,1719729038501,-500.0,0.00016438,2]
[330715236,1719729038511,-500.0,0.00016438,2]
[330715237,1719729038521,-503.05908995,0.00016438,2]
[330715238,1719729038530,-500.0,0.00016438,2]
[330715239,1719729038541,-503.66349811,0.00016438,2]
[330715240,1719729038550,-500.0,0.00016438,2]
[330715241,1719729038559,-501.71861451,0.00016438,2]
[330715242,1719729038574,-500.0,0.00016438,2]
[330715243,1719729038583,-503.72213045,0.00016438,2]
[330715244,1719729038593,-505.59809707,0.00016438,2]
[330715245,1719729038603,-503.13922847,0.00016438,2]
[330715246,1719729038613,-500.0,0.00016438,2]
[330715247,1719729038623,-753.97,0.00016438,2]
[330715248,1719729038633,-500.0,0.00016438,2]
[330715249,1719729038643,-500.0,0.00016438,2]
[330715250,1719729038653,-500.0,0.00016438,2]
[330715251,1719729038662,-500.0,0.00016438,2]
[330715252,1719729038672,-500.0,0.00016438,2]
[330715253,1719729038682,-500.0,0.00016438,2]
[330715254,1719729038692,-259.7614997,0.00016438,2]
[330715255,1719729038702,-500.0,0.00016438,2]
[330715256,1719729038711,-234.00245064,0.00016438,2]
[330715257,1719729038721,-502.53388682,0.00016438,2]
[330715258,1719729038730,-500.0,0.00016438,2]
[330715259,1719729038740,-500.0,0.00016438,2]
[330715260,1719729038750,-500.0,0.00016438,2]
[330715261,1719729038759,-500.0,0.00016438,2]
[330715262,1719729038769,-703.9,0.00016438,2]
[330715263,1719729038785,-613.64,0.00016438,2]
[330715264,1719729038798,-410.26335676,0.00016438,2]
[330715265,1719729038808,-500.0,0.00016438,2]
[330715266,1719729038819,-501.67703648,0.00016438,2]
[330715267,1719729038828,-500.0,0.00016438,2]
[330715268,1719729038838,-500.0,0.00016438,2]
[330715269,1719729038848,-728.68,0.00016438,2]
[330715270,1719729038859,-502.32933308,0.00016438,2]
[330715271,1719729038870,-500.0,0.00016438,2]
[330715272,1719729038879,-500.0,0.00016438,2]
[330715273,1719729038890,-494.74240555,0.00016438,2]
[330715274,1719729038899,-502.75853814,0.00016438,2]
[330715275,1719729038909,-500.0,0.00016438,2]
[330715276,1719729038918,-500.0,0.00016438,2]
[330715277,1719729038928,-500.0,0.00016438,2]
[330715278,1719729038937,-500.0,0.00016438,2]
[330715279,1719729038947,-502.68202853,0.00016438,2]
[330715280,1719729038958,-506.19227959,0.00016438,2]
[330715281,1719729038968,-500.0,0.00016438,2]
[330715282,1719729038979,-500.0,0.00016438,2]
[330715283,1719729038988,-500.0,0.00016438,2]
[330715284,1719729038998,-490.34845535,0.00016438,2]
[330715285,1719729039008,-513.74471728,0.00016438,2]
[330715286,1719729039018,-900.33,0.00016438,2]
[330715287,1719729039028,-526.18308385,0.00016438,2]
[330715288,1719729039038,-550.43610066,0.00016438,2]
[330715289,1719729039050,-1272.77,0.00016438,2]
[330715290,1719729039060,-500.0,0.00016438,2]
[330715291,1719729039070,-500.0,0.00016438,2]
[330715292,1719729039080,-500.0,0.00016438,2]
[330715293,1719729039090,-500.0,0.00016438,2]
[330715294,1719729039101,-500.0,0.00016438,2]
[330715295,1719729039111,-500.0,0.00016438,2]
[330715296,1719729039121,-501.7334312,0.00016438,2]
[330715297,1719729039131,-500.0,0.00016438,2]
[330715298,1719729039141,-24536.05,0.00016438,2]
[330715299,1719729039150,-500.0,0.00016438,2]
[330715300,1719729039160,-500.0,0.00016438,2]
[330715301,1719729039172,-500.0,0.00016438,2]
[330715302,1719729039182,-500.0,0.00016438,2]
[330715303,1719729039192,-642.72365021,0.00016438,2]
[330715304,1719729039202,-500.0,0.00016438,2]
[330715305,1719729039213,-500.0,0.00016438,2]
[330715306,1719729039223,-500.0,0.00016438,2]
[330715307,1719729039234,-500.0,0.00016438,2]
[330715308,1719729039244,-500.0,0.00016438,2]
[330715309,1719729039254,-500.0,0.00016438,2]
[330715310,1719729039264,-1277.19,0.00016438,2]
[330715311,1719729039274,-814.4,0.00016438,2]
[330715312,1719729039284,-500.0,0.00016438,2]
[330715313,1719729039294,-500.0,0.00016438,2]
[330715314,1719729039304,-497.24081601,0.00016438,2]
[330715315,1719729039314,-500.0,0.00016438,2]
[330715316,1719729039324,-2429.21,0.00016438,2]
[330715317,1719729039334,-509.45315943,0.00016438,2]
[330715318,1719729039344,-1404.62,0.00016438,2]
[330715319,1719729039353,-500.0,0.00016438,2]
[330715321,1719729039364,-500.0,0.00016438,2]
[330715323,1719729039379,-1071.78,0.00016438,2]
[330715324,1719729039388,-500.0,0.00016438,2]
[330715325,1719729039398,-1070.97,0.00016438,2]
[330715326,1719729039408,-500.0,0.00016438,2]
[330715327,1719729039417,-754.12,0.00016438,2]
[330715328,1719729039427,-500.0,0.00016438,2]
[330715329,1719729039439,-500.0,0.00016438,2]
[330715330,1719729039449,-649.54,0.00016438,2]
[330715331,1719729039458,-852.39,0.00016438,2]
[330715332,1719729039468,-614.86170782,0.00016438,2]
[330715333,1719729039478,-500.0,0.00016438,2]
[330715334,1719729039488,-500.0,0.00016438,2]
[330715335,1719729039497,-642.22,0.00016438,2]
[330715336,1719729039507,-500.0,0.00016438,2]
[330715338,1719729039517,-500.0,0.00016438,2]
[330715339,1719729039527,-793.71,0.00016438,2]
[330715341,1719729039536,-2733.48,0.00016438,2]
[330715342,1719729039547,-548.5553125,0.00016438,2]
[330715343,1719729039557,-835.69,0.00016438,2]
[330715344,1719729039567,-1682.43,0.00016438,2]
[330715345,1719729039576,-500.0,0.00016438,2]
[330715347,1719729039586,-505.69048026,0.00016438,2]
[330715348,1719729039596,-500.0,0.00016438,2]
[330715350,1719729039606,-283.41994305,0.00016438,2]
[330715351,1719729039616,-502.51886027,0.00016438,2]
[330715352,1719729039722,-500.0,0.00016438,2]
[330715353,1719729039732,-778.99,0.00016438,2]
[330715354,1719729039742,-500.0,0.00016438,2]
[330715355,1719729039752,-352.42377064,0.00016438,2]
[330715357,1719729039762,-500.0,0.00016438,2]
[330715359,1719729039772,-500.0,0.00016438,2]
[330715360,1719729039785,-500.0,0.00016438,2]
[330715361,1719729039795,-500.0,0.00016438,2]
[330715362,1719729039805,-610.51,0.00016438,2]
[330715363,1719729039815,-500.0,0.00016438,2]
[330715364,1719729039826,-509.77482491,0.00016438,2]
[330715365,1719729039835,-500.0,0.00016438,2]
[330715366,1719729039845,-622.24,0.00016438,2]
[330715367,1719729039855,-500.0,0.00016438,2]
[330715369,1719729039867,-3196.31,0.00016438,2]
[330715371,1719729039877,-500.0,0.00016438,2]
[330715373,1719729039888,-500.0,0.00016438,2]
[330715374,1719729039897,-500.0,0.00016438,2]
[330715376,1719729039908,-500.0,0.00016438,2]
[330715378,1719729039918,-500.0,0.00016438,2]
[330715380,1719729039927,-500.0,0.00016438,2]
[330715381,1719729039937,-500.0,0.00016438,2]
[330715382,1719729039947,-500.0,0.00016438,2]
[330715383,1719729039957,-500.0,0.00016438,2]
[330715384,1719729039966,-500.0,0.00016438,2]
[330715386,1719729039976,-500.0,0.00016438,2]
[330715388,1719729039985,-500.0,0.00016438,2]
[330715390,1719729039995,-500.0,0.00016438,2]
[330715391,1719729040005,-500.0,0.00016438,2]
[330715393,1719729040015,-500.0,0.00016438,2]
[330715395,1719729040024,-500.0,0.00016438,2]
[330715396,1719729040035,-962.72,0.00016438,2]
[330715397,1719729040046,-500.0,0.00016438,2]
[330715398,1719729040055,-500.0,0.00016438,2]
[330715399,1719729040066,-218.19903347,0.00016438,2]
[330715400,1719729040076,-961.87,0.00016438,2]
[330715401,1719729040086,-500.0,0.00016438,2]
[330715403,1719729040096,-500.0,0.00016438,2]
[330715405,1719729040106,-289.60180545,0.00016438,2]
[330715406,1719729040116,-500.0,0.00016438,2]
[330715408,1719729040127,-500.0,0.00016438,2]
[330715410,1719729040136,-356.35071583,0.00016438,2]
[330715411,1719729040147,-500.0,0.00016438,2]
[330715412,1719729040157,-500.0,0.00016438,2]
[330715413,1719729040166,-500.0,0.00016438,2]
[330715414,1719729040176,-1512.02,0.00016438,2]
[330715415,1719729040186,-500.0,0.00016438,2]
[330715416,1719729040196,-605.53090476,0.00016438,2]
[330715418,1719729040206,-500.0,0.00016438,2]
[330715420,1719729040216,-555.92,0.00016438,2]
[330715422,1719729040226,-500.0,0.00016438,2]
[330715424,1719729040236,-546.67653894,0.00016438,2]
[330715426,1719729040245,-645.19,0.00016438,2]
[330715427,1719729040255,-843.42,0.00016438,2]
[330715429,1719729040265,-1512.82,0.00016438,2]
[330715430,1719729040280,-508.10731312,0.00016438,2]
[330715431,1719729040298,-500.0,0.00016438,2]
[330715432,1719729040308,-711.91,0.00016438,2]
[330715433,1719729040318,-3739.56,0.00016438,2]
[330715434,1719729040328,-500.0,0.00016438,2]
[330715435,1719729040339,-500.0,0.00016438,2]
[330715437,1719729040349,-500.0,0.00016438,2]
[330715439,1719729040359,-500.0,0.00016438,2]
[330715441,1719729040368,-500.0,0.00016438,2]
[330715442,1719729040378,-500.0,0.00016438,2]
[330715443,1719729040387,-500.0,0.00016438,2]
[330715444,1719729040398,-500.0,0.00016438,2]
[330715445,1719729040407,-188.09167626,0.00016438,2]
[330715446,1719729040417,-1256.43,0.00016438,2]
[330715447,1719729040428,-500.0,0.00016438,2]
[330715448,1719729040438,-623.77,0.00016438,2]
[330715449,1719729040447,-502.3572383,0.00016438,2]
[330715450,1719729040457,-500.0,0.00016438,2]
[330715451,1719729040467,-500.0,0.00016438,2]
[330715452,1719729040477,-744.13,0.00016438,2]
[330715453,1719729040487,-500.0,0.00016438,2]
[330715454,1719729040496,-508.18186603,0.00016438,2]
[330715455,1719729040506,-500.0,0.00016438,2]
[330715456,1719729040515,-500.0,0.00016438,2]
[330715457,1719729040525,-237.5712589,0.00016438,2]
[330715458,1719729040943,-267.19471736,0.00016438,2]
[330715459,1719729040953,-500.74695994,0.00016438,2]
[330715460,1719729040963,-500.0,0.00016438,2]
[330715461,1719729040973,-500.0,0.00016438,2]
[330715462,1719729040983,-500.0,0.00016438,2]
[330715463,1719729040992,-500.0,0.00016438,2]
[330715464,1719729041002,-184.87130259,0.00016438,2]
[330715565,1719729046052,-284.61,0.00016438,2]
[330715574,1719729471474,801.20663452,0.00015,2]
[330715576,1719729592924,866.45028013,0.00015,2]
[330715583,1719730010014,3769.18827951,0.00015,2]
[330715585,1719730025080,3769.18827951,0.00015,2]
[330715587,1719730079492,11147.45043014,0.00014998,2]
[330715805,1719730238195,-657.00848136,0.00015177,2]
[330715807,1719730238208,-35.77879434,0.00015177,2]
[330715808,1719730238218,-232.13670566,0.000155,2]
[330715842,1719730240698,-267.86329434,0.000155,2]
[330715843,1719730240708,-500.0,0.00016,2]
[330715844,1719730240718,-680.6133418,0.00016232,2]
[330715845,1719730240728,-3036.41132864,0.00016255,2]
[330715923,1719730246474,-10954.86194974,0.00016255,2]
[330715924,1719730246487,-500.0,0.00016255,2]
[330715925,1719730283168,168.57720028,0.00014999,2]
[330715926,1719730306161,262.95696493,0.00014999,2]
[330715928,1719730343438,155.34052172,0.00014999,2]
[330715929,1719730350870,755.45153777,0.00014999,2]
[330715930,1719730361062,1667.28328461,0.00014999,2]
[330715931,1719730362510,899.99483813,0.00015,2]
[330715932,1719730364711,2142.33635981,0.00014999,2]
[330715936,1719730416047,1497.46108653,0.00014999,2]
[330715937,1719730426042,301.28428888,0.00014999,2]
[330715944,1719730848429,1396.439613,0.00015007,2]
[330715949,1719731324462,-676.54385279,0.00015027,2]
[330715950,1719731324504,-604.63715968,0.00015027,2]